[Event "*** Titled Tuesday Blitz"]
[Site "Chess.com"]
[Date "2018.10.02"]
[Round "9"]
[White "kasparik_garik"]
[Black "Benek77"]
[Result "0-1"]
[WhiteElo "2549"]
[BlackElo "2602"]
[TimeControl "180+2"]
[EndTime "15:00:43 PDT"]
[Termination "Benek77 won by resignation"]

1. e4 {[%clk 0:02:58.7]} 1... c5 {[%clk 0:03:00]} 2. Nf3 {[%clk 0:02:59.4]} 2...
d6 {[%clk 0:03:01.2]} 3. Nc3 {[%clk 0:02:59.3]} 3... Nf6 {[%clk 0:03:02.2]} 4.
Bb5+ {[%clk 0:02:59.7]} 4... Nbd7 {[%clk 0:03:01.2]} 5. O-O {[%clk 0:03:00.2]}
5... a6 {[%clk 0:03:00.8]} 6. Bxd7+ {[%clk 0:03:00.8]} 6... Bxd7 {[%clk
0:03:01.5]} 7. e5 {[%clk 0:03:01.6]} 7... dxe5 {[%clk 0:03:01.1]} 8. Nxe5 {[%clk
0:03:02.7]} 8... e6 {[%clk 0:03:02.4]} 9. Qf3 {[%clk 0:02:58.7]} 9... Qc7 {[%clk
0:02:59.6]} 10. Nxd7 {[%clk 0:02:59.1]} 10... Qxd7 {[%clk 0:03:00]} 11. d3
{[%clk 0:02:45.3]} 11... Be7 {[%clk 0:03:00.3]} 12. Be3 {[%clk 0:02:46.1]} 12...
O-O {[%clk 0:02:59.7]} 13. Ne4 {[%clk 0:02:44.5]} 13... Nxe4 {[%clk 0:02:46.3]}
14. dxe4 {[%clk 0:02:43.5]} 14... Qc6 {[%clk 0:02:45.1]} 15. Rad1 {[%clk
0:02:40]} 15... Rad8 {[%clk 0:02:41.4]} 16. b3 {[%clk 0:02:35.9]} 16... c4
{[%clk 0:02:40.4]} 17. Bd4 {[%clk 0:02:06.1]} 17... b5 {[%clk 0:02:16.5]} 18.
Qe3 {[%clk 0:01:49]} 18... f6 {[%clk 0:01:42.4]} 19. Bb6 {[%clk 0:01:32.7]}
19... Rb8 {[%clk 0:01:42.9]} 20. Ba7 {[%clk 0:01:30.7]} 20... Rb7 {[%clk
0:01:42.1]} 21. h4 {[%clk 0:01:16]} 21... e5 {[%clk 0:01:42]} 22. Rd5 {[%clk
0:01:16.3]} 22... f5 {[%clk 0:01:14.9]} 23. f3 {[%clk 0:00:40.3]} 23... f4
{[%clk 0:01:07.5]} 24. Qf2 {[%clk 0:00:40.1]} 24... Qh6 {[%clk 0:00:51.3]} 25.
Rfd1 {[%clk 0:00:22.6]} 25... Bxh4 {[%clk 0:00:51.5]} 26. Qc5 {[%clk 0:00:23.5]}
26... Bg3 {[%clk 0:00:50.5]} 27. Kf1 {[%clk 0:00:23.7]} 27... Qh1+ {[%clk
0:00:38.4]} 28. Qg1 {[%clk 0:00:24.3]} 28... Qh5 {[%clk 0:00:39.9]} 29. Bc5
{[%clk 0:00:18.8]} 29... Re8 {[%clk 0:00:41]} 30. Rd8 {[%clk 0:00:17.2]} 30...
h6 {[%clk 0:00:34]} 31. Ke2 {[%clk 0:00:17]} 31... Kh7 {[%clk 0:00:33]} 32. R8d5
{[%clk 0:00:17]} 32... Rc7 {[%clk 0:00:29.7]} 33. b4 {[%clk 0:00:17.6]} 33...
Rc6 {[%clk 0:00:30]} 34. Qh1 {[%clk 0:00:17.8]} 34... Qxh1 {[%clk 0:00:23.5]}
35. Rxh1 {[%clk 0:00:18.3]} 35... Rg6 {[%clk 0:00:25.4]} 36. Rhd1 {[%clk
0:00:17.9]} 36... Bh4 {[%clk 0:00:25.3]} 37. Kf1 {[%clk 0:00:19]} 37... Ree6
{[%clk 0:00:19.6]} 38. Rd7 {[%clk 0:00:19.6]} 38... Rg5 {[%clk 0:00:17.1]} 39.
R1d6 {[%clk 0:00:19.7]} 39... Rgg6 {[%clk 0:00:15.1]} 40. Rd5 {[%clk 0:00:20.2]}
40... Bf6 {[%clk 0:00:14.2]} 41. R7d6 {[%clk 0:00:20]} 41... Be7 {[%clk
0:00:14.3]} 42. Rxe6 {[%clk 0:00:20.6]} 42... Rxe6 {[%clk 0:00:16.2]} 43. Rd7
{[%clk 0:00:21.2]} 43... Bxc5 {[%clk 0:00:16.4]} 44. bxc5 {[%clk 0:00:22.1]}
44... Rc6 {[%clk 0:00:18.3]} 45. Rd5 {[%clk 0:00:22.9]} 45... Re6 {[%clk
0:00:18]} 46. Rd6 {[%clk 0:00:22.4]} 46... Re7 {[%clk 0:00:15.5]} 47. Rxa6
{[%clk 0:00:23.3]} 47... Rc7 {[%clk 0:00:17.1]} 48. c6 {[%clk 0:00:24.2]} 48...
Kg6 {[%clk 0:00:18.5]} 49. Ke2 {[%clk 0:00:23.9]} 49... Kf6 {[%clk 0:00:19.6]}
50. Kd2 {[%clk 0:00:24.6]} 50... Ke6 {[%clk 0:00:10.9]} 51. Kc3 {[%clk
0:00:25.2]} 51... Kd6 {[%clk 0:00:12.5]} 52. Kb4 {[%clk 0:00:25.8]} 52... Rxc6
{[%clk 0:00:13.3]} 53. Ra7 {[%clk 0:00:27]} 53... Rc7 {[%clk 0:00:06.5]} 54.
Kxb5 {[%clk 0:00:18.4]} 54... Rxa7 {[%clk 0:00:06.5]} 0-1

[Event "*** Titled Tuesday Blitz"]
[Site "Chess.com"]
[Date "2018.10.02"]
[Round "9"]
[White "MikeSailer"]
[Black "Alex_Terzi"]
[Result "1/2-1/2"]
[WhiteElo "2080"]
[BlackElo "2448"]
[TimeControl "180+2"]
[EndTime "15:00:45 PDT"]
[Termination "Game drawn by repetition"]

1. c4 {[%clk 0:03:01.9]} 1... Nf6 {[%clk 0:02:59.7]} 2. g3 {[%clk 0:03:01.1]}
2... g6 {[%clk 0:03:01.2]} 3. Bg2 {[%clk 0:02:59.7]} 3... Bg7 {[%clk 0:03:03.1]}
4. Nf3 {[%clk 0:03:00.6]} 4... O-O {[%clk 0:03:05]} 5. O-O {[%clk 0:03:02.1]}
5... d5 {[%clk 0:03:03.2]} 6. cxd5 {[%clk 0:03:02.6]} 6... Nxd5 {[%clk
0:03:05.1]} 7. Nc3 {[%clk 0:03:04.2]} 7... c6 {[%clk 0:03:04.7]} 8. Nxd5 {[%clk
0:02:56.8]} 8... cxd5 {[%clk 0:03:06.6]} 9. d4 {[%clk 0:02:57.4]} 9... Nc6
{[%clk 0:03:07.2]} 10. Bf4 {[%clk 0:02:51.9]} 10... Bf5 {[%clk 0:03:08]} 11. Rc1
{[%clk 0:02:51.1]} 11... Be4 {[%clk 0:03:08.4]} 12. a3 {[%clk 0:02:51.7]} 12...
Rc8 {[%clk 0:03:07]} 13. Ne5 {[%clk 0:02:45.8]} 13... Bxg2 {[%clk 0:03:04]} 14.
Nxc6 {[%clk 0:02:46]} 14... Rxc6 {[%clk 0:02:51.3]} 15. Kxg2 {[%clk 0:02:43.5]}
15... Rxc1 {[%clk 0:02:46.4]} 16. Bxc1 {[%clk 0:02:44.5]} 16... Qb6 {[%clk
0:02:46.2]} 17. e3 {[%clk 0:02:43]} 17... Rc8 {[%clk 0:02:46.9]} 18. Qa4 {[%clk
0:02:33.2]} 18... a6 {[%clk 0:02:39.1]} 19. Qd7 {[%clk 0:02:05.8]} 19... Qc6
{[%clk 0:02:27.7]} 20. Qxe7 {[%clk 0:01:57.2]} 20... Bf8 {[%clk 0:02:17.1]} 21.
Qe5 {[%clk 0:01:53]} 21... f6 {[%clk 0:02:11.9]} 22. Qf4 {[%clk 0:01:42.5]}
22... Kg7 {[%clk 0:02:04.4]} 23. Bd2 {[%clk 0:01:39.5]} 23... Qb5 {[%clk
0:01:58.4]} 24. Rc1 {[%clk 0:01:29.6]} 24... Rxc1 {[%clk 0:01:55.9]} 25. Bxc1
{[%clk 0:01:30.4]} 25... Qc6 {[%clk 0:01:38.9]} 26. Bd2 {[%clk 0:01:29.3]} 26...
b5 {[%clk 0:01:30.5]} 27. Ba5 {[%clk 0:01:19.2]} 27... Bd6 {[%clk 0:01:27.1]}
28. Qg4 {[%clk 0:01:16.7]} 28... f5 {[%clk 0:01:19.8]} 29. Qg5 {[%clk
0:01:11.1]} 29... Qd7 {[%clk 0:01:20.4]} 30. Bd8 {[%clk 0:00:59.8]} 30... Qe6
{[%clk 0:01:15.4]} 31. Qh4 {[%clk 0:00:43.8]} 31... h6 {[%clk 0:01:13]} 32. h3
{[%clk 0:00:22.7]} 32... b4 {[%clk 0:00:57.2]} 33. axb4 {[%clk 0:00:20.7]} 33...
Bxb4 {[%clk 0:00:58.2]} 34. Bc7 {[%clk 0:00:15.9]} 34... g5 {[%clk 0:00:54.1]}
35. Qh5 {[%clk 0:00:11.2]} 35... Qe4+ {[%clk 0:00:49.4]} 36. Kh2 {[%clk
0:00:12.4]} 36... Be7 {[%clk 0:00:37]} 37. Be5+ {[%clk 0:00:12.3]} 37... Bf6
{[%clk 0:00:37.8]} 38. Qe8 {[%clk 0:00:08.1]} 38... Bxe5 {[%clk 0:00:37]} 39.
dxe5 {[%clk 0:00:03.6]} 39... Qf3 {[%clk 0:00:33.2]} 40. Qe7+ {[%clk 0:00:04.3]}
40... Kg8 {[%clk 0:00:33.8]} 41. Qe6+ {[%clk 0:00:04.5]} 41... Kf8 {[%clk
0:00:33.6]} 42. Qxh6+ {[%clk 0:00:03.8]} 42... Ke8 {[%clk 0:00:34.2]} 43. Qe6+
{[%clk 0:00:04.1]} 43... Kd8 {[%clk 0:00:34.5]} 44. Qd6+ {[%clk 0:00:03.1]}
44... Ke8 {[%clk 0:00:35]} 45. Qg6+ {[%clk 0:00:03.8]} 45... Kd7 {[%clk
0:00:34.8]} 46. e6+ {[%clk 0:00:04.8]} 46... Kd6 {[%clk 0:00:34.4]} 47. Qxg5
{[%clk 0:00:03.4]} 47... Qxf2+ {[%clk 0:00:35.6]} 48. Kh1 {[%clk 0:00:04.7]}
48... Qf1+ {[%clk 0:00:37]} 49. Kh2 {[%clk 0:00:06.3]} 49... Qe2+ {[%clk
0:00:37.9]} 50. Kg1 {[%clk 0:00:07.3]} 50... Qe1+ {[%clk 0:00:38.6]} 51. Kg2
{[%clk 0:00:08.9]} 51... Qe2+ {[%clk 0:00:40.4]} 52. Kg1 {[%clk 0:00:10.4]}
52... Qd1+ {[%clk 0:00:41.9]} 53. Kf2 {[%clk 0:00:11.7]} 53... Qd2+ {[%clk
0:00:41.6]} 54. Kf3 {[%clk 0:00:09.1]} 54... Qd1+ {[%clk 0:00:42]} 55. Kf2
{[%clk 0:00:08.9]} 55... Qd2+ {[%clk 0:00:42.9]} 56. Kf1 {[%clk 0:00:08.8]}
56... Qc1+ {[%clk 0:00:43.5]} 57. Ke2 {[%clk 0:00:09.9]} 57... Qc2+ {[%clk
0:00:41]} 58. Kf3 {[%clk 0:00:09.3]} 58... Qd1+ {[%clk 0:00:40]} 59. Kf2 {[%clk
0:00:09]} 59... Qc2+ {[%clk 0:00:39.6]} 60. Ke1 {[%clk 0:00:09.7]} 60... Qb1+
{[%clk 0:00:39.8]} 61. Ke2 {[%clk 0:00:08.4]} 61... Qc2+ {[%clk 0:00:35]} 62.
Kf3 {[%clk 0:00:08.6]} 62... Qd1+ {[%clk 0:00:35]} 63. Kf2 {[%clk 0:00:09.7]}
63... Qd2+ {[%clk 0:00:36.4]} 64. Kf3 {[%clk 0:00:09.4]} 64... Qd1+ {[%clk
0:00:36.7]} 65. Kf2 {[%clk 0:00:10.6]} 1/2-1/2

[Event "*** Titled Tuesday Blitz"]
[Site "Chess.com"]
[Date "2018.10.02"]
[Round "9"]
[White "lucasmito"]
[Black "StoreySniper"]
[Result "1-0"]
[WhiteElo "2392"]
[BlackElo "2404"]
[TimeControl "180+2"]
[EndTime "15:00:56 PDT"]
[Termination "lucasmito won by resignation"]

1. e4 {[%clk 0:03:01.9]} 1... g6 {[%clk 0:02:58]} 2. d4 {[%clk 0:03:02.8]} 2...
Bg7 {[%clk 0:02:58.5]} 3. Nc3 {[%clk 0:03:04.3]} 3... c5 {[%clk 0:02:59.4]} 4.
Be3 {[%clk 0:03:05.8]} 4... Qa5 {[%clk 0:02:58.2]} 5. Nf3 {[%clk 0:03:06.4]}
5... Nf6 {[%clk 0:02:57]} 6. Qd2 {[%clk 0:03:07.5]} 6... Nc6 {[%clk 0:02:52.6]}
7. dxc5 {[%clk 0:03:04.3]} 7... Ng4 {[%clk 0:02:49.5]} 8. Nd5 {[%clk 0:02:33.7]}
8... Nxe3 {[%clk 0:02:34.5]} 9. Qxa5 {[%clk 0:02:16.1]} 9... Nxc2+ {[%clk
0:02:33.9]} 10. Kd2 {[%clk 0:02:17.3]} 10... Nxa5 {[%clk 0:02:34.8]} 11. Kxc2
{[%clk 0:02:18.7]} 11... Rb8 {[%clk 0:02:11.9]} 12. Rd1 {[%clk 0:02:10.6]} 12...
b6 {[%clk 0:02:03.8]} 13. cxb6 {[%clk 0:02:11.2]} 13... axb6 {[%clk 0:02:04.9]}
14. b4 {[%clk 0:02:12.7]} 14... Nc6 {[%clk 0:02:04.9]} 15. Kb3 {[%clk
0:02:04.9]} 15... e6 {[%clk 0:02:00.4]} 16. Nc7+ {[%clk 0:01:59]} 16... Ke7
{[%clk 0:01:52.9]} 17. Nb5 {[%clk 0:02:00.9]} 17... Ne5 {[%clk 0:01:39.3]} 18.
Nxe5 {[%clk 0:01:58.6]} 18... Bxe5 {[%clk 0:01:39.6]} 19. g3 {[%clk 0:01:55.3]}
19... Bb7 {[%clk 0:01:37.9]} 20. Bg2 {[%clk 0:01:42.4]} 20... Bc6 {[%clk
0:01:33.7]} 21. Nd4 {[%clk 0:01:39.5]} 21... Bxd4 {[%clk 0:01:26.9]} 22. Rxd4
{[%clk 0:01:41.4]} 22... e5 {[%clk 0:01:21.4]} 23. Rc4 {[%clk 0:01:38.9]} 23...
Ra8 {[%clk 0:01:09.9]} 24. Rhc1 {[%clk 0:01:38.5]} 24... f5 {[%clk 0:01:01.5]}
25. a3 {[%clk 0:01:28.2]} 25... Rhf8 {[%clk 0:00:53.8]} 26. Kb2 {[%clk
0:01:03.3]} 26... fxe4 {[%clk 0:00:50.8]} 27. R1c2 {[%clk 0:01:03.4]} 27... b5
{[%clk 0:00:26.1]} 28. Rxc6 {[%clk 0:00:31.6]} 28... dxc6 {[%clk 0:00:26.1]} 29.
Bxe4 {[%clk 0:00:33.5]} 29... Ra6 {[%clk 0:00:14.6]} 30. f3 {[%clk 0:00:33.8]}
30... Kd6 {[%clk 0:00:14]} 31. h4 {[%clk 0:00:29.7]} 31... Rfa8 {[%clk
0:00:12.5]} 32. Rc3 {[%clk 0:00:30]} 32... R8a7 {[%clk 0:00:13.4]} 33. g4 {[%clk
0:00:24.7]} 33... Rd7 {[%clk 0:00:13.2]} 34. Rc5 {[%clk 0:00:23.5]} 34... Kc7
{[%clk 0:00:12.9]} 35. Rxe5 {[%clk 0:00:24.2]} 35... Rd2+ {[%clk 0:00:13.9]} 36.
Bc2 {[%clk 0:00:21.7]} 36... Rf2 {[%clk 0:00:13.8]} 37. Re7+ {[%clk 0:00:20]}
37... Kb6 {[%clk 0:00:14.9]} 38. Rxh7 {[%clk 0:00:20.5]} 38... Ra8 {[%clk
0:00:15.4]} 39. Rf7 {[%clk 0:00:17.3]} 39... Re8 {[%clk 0:00:16]} 40. Kc3 {[%clk
0:00:14.8]} 40... Re3+ {[%clk 0:00:16.7]} 41. Kd4 {[%clk 0:00:16.2]} 41... Rxa3
{[%clk 0:00:16.9]} 42. Bxg6 {[%clk 0:00:17.1]} 42... Rb2 {[%clk 0:00:10.3]} 43.
Be4 {[%clk 0:00:17.3]} 43... Rxb4+ {[%clk 0:00:11.5]} 44. Ke5 {[%clk 0:00:18.9]}
44... Rc4 {[%clk 0:00:09]} 45. h5 {[%clk 0:00:19.9]} 45... Ra1 {[%clk
0:00:09.1]} 46. h6 {[%clk 0:00:18.5]} 46... Rh1 {[%clk 0:00:10.6]} 47. h7 {[%clk
0:00:20.1]} 47... b4 {[%clk 0:00:11.3]} 48. Rf8 {[%clk 0:00:18.7]} 48... Rxe4+
{[%clk 0:00:12]} 49. Kxe4 {[%clk 0:00:17]} 49... Rxh7 {[%clk 0:00:13.6]} 50. g5
{[%clk 0:00:18.2]} 50... b3 {[%clk 0:00:13.3]} 51. g6 {[%clk 0:00:17.8]} 51...
Rb7 {[%clk 0:00:13.1]} 52. Rh8 {[%clk 0:00:12.2]} 52... b2 {[%clk 0:00:13.6]}
53. Rh1 {[%clk 0:00:13.5]} 53... Kc5 {[%clk 0:00:13.9]} 54. f4 {[%clk
0:00:12.1]} 54... Kc4 {[%clk 0:00:14.9]} 55. f5 {[%clk 0:00:13]} 55... b1=Q+
{[%clk 0:00:15.9]} 56. Rxb1 {[%clk 0:00:13.5]} 56... Rxb1 {[%clk 0:00:17.8]} 57.
g7 {[%clk 0:00:13.8]} 57... Rg1 {[%clk 0:00:13.9]} 58. f6 {[%clk 0:00:14.7]}
58... Kc5 {[%clk 0:00:13.5]} 59. f7 {[%clk 0:00:15.5]} 59... Re1+ {[%clk
0:00:10.7]} 60. Kd3 {[%clk 0:00:16.4]} 60... Rd1+ {[%clk 0:00:11.3]} 61. Ke2
{[%clk 0:00:17.3]} 1-0

[Event "*** Titled Tuesday Blitz"]
[Site "Chess.com"]
[Date "2018.10.02"]
[Round "9"]
[White "wonderfultime"]
[Black "PaulfromSPb"]
[Result "1-0"]
[WhiteElo "2853"]
[BlackElo "2518"]
[TimeControl "180+2"]
[EndTime "15:01:14 PDT"]
[Termination "wonderfultime won by checkmate"]

1. Nf3 {[%clk 0:03:01.9]} 1... Nf6 {[%clk 0:03:00.3]} 2. c4 {[%clk 0:03:00.7]}
2... e6 {[%clk 0:03:01.2]} 3. g3 {[%clk 0:03:00.9]} 3... a6 {[%clk 0:03:01]} 4.
Bg2 {[%clk 0:03:02.1]} 4... b5 {[%clk 0:03:01.9]} 5. b3 {[%clk 0:03:02.9]} 5...
Bb7 {[%clk 0:03:01.4]} 6. Bb2 {[%clk 0:03:04.4]} 6... c5 {[%clk 0:03:02.4]} 7.
O-O {[%clk 0:03:05.6]} 7... Be7 {[%clk 0:03:02.9]} 8. d3 {[%clk 0:03:05.3]} 8...
O-O {[%clk 0:03:02.5]} 9. Nbd2 {[%clk 0:03:06.7]} 9... d5 {[%clk 0:03:01.2]} 10.
Qc2 {[%clk 0:03:01.9]} 10... Nbd7 {[%clk 0:02:48.4]} 11. Rac1 {[%clk 0:03:02.6]}
11... Rc8 {[%clk 0:02:47.4]} 12. Rfd1 {[%clk 0:02:57]} 12... Qb6 {[%clk
0:02:44.7]} 13. Qb1 {[%clk 0:02:56.3]} 13... Rfd8 {[%clk 0:02:40.5]} 14. cxd5
{[%clk 0:02:37.8]} 14... exd5 {[%clk 0:02:29]} 15. e4 {[%clk 0:02:38.2]} 15...
Nf8 {[%clk 0:02:02.9]} 16. Nh4 {[%clk 0:02:20.2]} 16... d4 {[%clk 0:01:36.6]}
17. Nf5 {[%clk 0:02:17.7]} 17... Re8 {[%clk 0:01:29.8]} 18. b4 {[%clk
0:02:16.9]} 18... Ne6 {[%clk 0:01:18]} 19. Nxe7+ {[%clk 0:02:12.1]} 19... Rxe7
{[%clk 0:01:18.6]} 20. bxc5 {[%clk 0:02:14]} 20... Rxc5 {[%clk 0:01:18.8]} 21.
Rxc5 {[%clk 0:02:10]} 21... Qxc5 {[%clk 0:01:18.5]} 22. Nb3 {[%clk 0:02:11.3]}
22... Qd6 {[%clk 0:01:13.7]} 23. Qa1 {[%clk 0:01:52.5]} 23... Rd7 {[%clk
0:01:12.7]} 24. h3 {[%clk 0:01:44.7]} 24... Qb6 {[%clk 0:01:07.5]} 25. Rc1
{[%clk 0:01:41.5]} 25... h6 {[%clk 0:01:04.6]} 26. a4 {[%clk 0:01:22.3]} 26...
bxa4 {[%clk 0:00:52.3]} 27. Qxa4 {[%clk 0:01:24.2]} 27... Kh7 {[%clk 0:00:42.3]}
28. Ba1 {[%clk 0:01:18.5]} 28... Qb5 {[%clk 0:00:38.8]} 29. Qxb5 {[%clk
0:01:10.8]} 29... axb5 {[%clk 0:00:40.7]} 30. f4 {[%clk 0:01:12.7]} 30... g6
{[%clk 0:00:28.6]} 31. Kf2 {[%clk 0:01:12.2]} 31... b4 {[%clk 0:00:25.2]} 32. f5
{[%clk 0:01:02.8]} 32... Nd8 {[%clk 0:00:20]} 33. Bxd4 {[%clk 0:01:03.2]} 33...
Ne8 {[%clk 0:00:16.3]} 34. fxg6+ {[%clk 0:01:02.3]} 34... Kxg6 {[%clk
0:00:15.7]} 35. Ke3 {[%clk 0:00:59.7]} 35... Ne6 {[%clk 0:00:15.9]} 36. Bb2
{[%clk 0:00:58]} 36... Ba6 {[%clk 0:00:14.7]} 37. d4 {[%clk 0:00:59.2]} 37...
Nd6 {[%clk 0:00:15.1]} 38. d5 {[%clk 0:01:00.7]} 38... Nc4+ {[%clk 0:00:15.5]}
39. Rxc4 {[%clk 0:01:00.7]} 39... Bxc4 {[%clk 0:00:17]} 40. Na5 {[%clk
0:00:59.7]} 40... Bb5 {[%clk 0:00:12.9]} 41. dxe6 {[%clk 0:00:41.2]} 41... Rd3+
{[%clk 0:00:13.6]} 42. Kf4 {[%clk 0:00:42.5]} 42... Rd2 {[%clk 0:00:14.9]} 43.
e7 {[%clk 0:00:32.4]} 43... Rxg2 {[%clk 0:00:14.2]} 44. Nc4 {[%clk 0:00:29]}
44... f6 {[%clk 0:00:11.5]} 45. Bd4 {[%clk 0:00:29.8]} 45... Rc2 {[%clk
0:00:09.9]} 46. Nd6 {[%clk 0:00:30.1]} 46... Bd7 {[%clk 0:00:11]} 47. e8=Q+
{[%clk 0:00:30.4]} 47... Bxe8 {[%clk 0:00:12.3]} 48. Nxe8 {[%clk 0:00:32.3]}
48... b3 {[%clk 0:00:13.9]} 49. Nxf6 {[%clk 0:00:32.3]} 49... Rc4 {[%clk
0:00:14.4]} 50. Be5 {[%clk 0:00:32.5]} 50... Rc2 {[%clk 0:00:13.4]} 51. Nd5
{[%clk 0:00:29.9]} 51... b2 {[%clk 0:00:14.6]} 52. Bxb2 {[%clk 0:00:31]} 52...
Rxb2 {[%clk 0:00:15.9]} 53. Ke5 {[%clk 0:00:31.7]} 53... Rb3 {[%clk 0:00:17.1]}
54. Kf4 {[%clk 0:00:29.8]} 54... Ra3 {[%clk 0:00:18.4]} 55. h4 {[%clk
0:00:29.2]} 55... Rb3 {[%clk 0:00:18.2]} 56. g4 {[%clk 0:00:30.5]} 56... Kf7
{[%clk 0:00:18.9]} 57. h5 {[%clk 0:00:30.1]} 57... Rb1 {[%clk 0:00:19.2]} 58.
Kf5 {[%clk 0:00:30.4]} 58... Rb5 {[%clk 0:00:19.5]} 59. g5 {[%clk 0:00:31]}
59... hxg5 {[%clk 0:00:19.9]} 60. Kxg5 {[%clk 0:00:32.9]} 60... Ke6 {[%clk
0:00:18.2]} 61. h6 {[%clk 0:00:33.9]} 61... Rb1 {[%clk 0:00:18.8]} 62. Nf4+
{[%clk 0:00:32.9]} 62... Ke5 {[%clk 0:00:18.5]} 63. Ng6+ {[%clk 0:00:29.6]}
63... Kxe4 {[%clk 0:00:17.9]} 64. h7 {[%clk 0:00:31]} 64... Rb8 {[%clk
0:00:18.9]} 65. Kf6 {[%clk 0:00:32.5]} 65... Kd5 {[%clk 0:00:17.8]} 66. Ne7+
{[%clk 0:00:33.7]} 66... Ke4 {[%clk 0:00:11.9]} 67. Ng8 {[%clk 0:00:35.6]} 67...
Rb6+ {[%clk 0:00:12.9]} 68. Kg5 {[%clk 0:00:36.9]} 68... Rb5+ {[%clk 0:00:14]}
69. Kg6 {[%clk 0:00:32.8]} 69... Kf4 {[%clk 0:00:07.3]} 70. h8=Q {[%clk
0:00:32.4]} 70... Rg5+ {[%clk 0:00:07.8]} 71. Kf7 {[%clk 0:00:33.9]} 71... Rf5+
{[%clk 0:00:08.1]} 72. Nf6 {[%clk 0:00:35.2]} 72... Re5 {[%clk 0:00:08.8]} 73.
Qh4+ {[%clk 0:00:35.6]} 73... Kf5 {[%clk 0:00:09.6]} 74. Qg4# {[%clk 0:00:36.9]}
1-0

[Event "*** Titled Tuesday Blitz"]
[Site "Chess.com"]
[Date "2018.10.02"]
[Round "9"]
[White "saraswathii"]
[Black "senecacrane"]
[Result "1-0"]
[WhiteElo "2309"]
[BlackElo "2164"]
[TimeControl "180+2"]
[EndTime "15:02:05 PDT"]
[Termination "saraswathii won by resignation"]

1. e4 {[%clk 0:03:01.9]} 1... c6 {[%clk 0:03:00.7]} 2. d3 {[%clk 0:03:01.4]}
2... d5 {[%clk 0:03:01.4]} 3. Nd2 {[%clk 0:03:03.3]} 3... e5 {[%clk 0:03:02.1]}
4. Ngf3 {[%clk 0:03:03.5]} 4... Nd7 {[%clk 0:03:02.6]} 5. g3 {[%clk 0:03:03.4]}
5... Ngf6 {[%clk 0:03:03.4]} 6. Bg2 {[%clk 0:03:03.8]} 6... Bd6 {[%clk
0:03:04.6]} 7. O-O {[%clk 0:03:03.7]} 7... O-O {[%clk 0:03:06]} 8. Qe2 {[%clk
0:03:03.9]} 8... Re8 {[%clk 0:03:06.9]} 9. Nh4 {[%clk 0:03:04.4]} 9... Nf8
{[%clk 0:03:06]} 10. Ndf3 {[%clk 0:02:58.5]} 10... Ng6 {[%clk 0:03:03.3]} 11.
Nf5 {[%clk 0:02:58.3]} 11... Bf8 {[%clk 0:02:44.8]} 12. h4 {[%clk 0:02:50.5]}
12... Bxf5 {[%clk 0:02:34.7]} 13. exf5 {[%clk 0:02:50.8]} 13... Ne7 {[%clk
0:02:36.3]} 14. Qxe5 {[%clk 0:02:47.4]} 14... Qd7 {[%clk 0:02:19.6]} 15. Bh3
{[%clk 0:02:44.2]} 15... Nc8 {[%clk 0:01:57.6]} 16. Qc3 {[%clk 0:02:31.2]} 16...
Nd6 {[%clk 0:01:55.4]} 17. g4 {[%clk 0:02:29.3]} 17... h5 {[%clk 0:01:51.1]} 18.
g5 {[%clk 0:02:28.3]} 18... Ng4 {[%clk 0:01:52]} 19. f6 {[%clk 0:02:25.3]} 19...
Nf5 {[%clk 0:01:31.6]} 20. Bf4 {[%clk 0:02:08]} 20... g6 {[%clk 0:01:26.8]} 21.
Rae1 {[%clk 0:02:00.1]} 21... Bd6 {[%clk 0:01:18.2]} 22. Qd2 {[%clk 0:01:54.2]}
22... Qc7 {[%clk 0:01:18.3]} 23. Bxd6 {[%clk 0:01:48.2]} 23... Qxd6 {[%clk
0:01:20.2]} 24. d4 {[%clk 0:01:34.1]} 24... Re4 {[%clk 0:01:12.2]} 25. Rxe4
{[%clk 0:01:32.7]} 25... dxe4 {[%clk 0:01:12.1]} 26. Bxg4 {[%clk 0:01:32.8]}
26... hxg4 {[%clk 0:01:10.5]} 27. Ne5 {[%clk 0:01:25.9]} 27... Nxh4 {[%clk
0:01:06.7]} 28. Re1 {[%clk 0:01:23.1]} 28... Re8 {[%clk 0:00:59.6]} 29. Qe3
{[%clk 0:01:16.8]} 29... Nf3+ {[%clk 0:00:51.2]} 30. Nxf3 {[%clk 0:01:10.7]}
30... gxf3 {[%clk 0:00:52.4]} 31. Rd1 {[%clk 0:00:31]} 31... c5 {[%clk 0:00:31]}
32. c3 {[%clk 0:00:26.8]} 32... Qd5 {[%clk 0:00:19.8]} 33. b3 {[%clk 0:00:23.1]}
33... Qf5 {[%clk 0:00:18]} 34. Kf1 {[%clk 0:00:23.4]} 34... cxd4 {[%clk
0:00:18.7]} 35. Rxd4 {[%clk 0:00:21.1]} 35... Qh3+ {[%clk 0:00:18.9]} 36. Ke1
{[%clk 0:00:21.5]} 36... Qh1+ {[%clk 0:00:19.4]} 37. Kd2 {[%clk 0:00:22.3]}
37... Qb1 {[%clk 0:00:20.6]} 38. Ra4 {[%clk 0:00:15]} 38... Qb2+ {[%clk
0:00:21.2]} 39. Ke1 {[%clk 0:00:15.3]} 39... Qb1+ {[%clk 0:00:21.6]} 40. Kd2
{[%clk 0:00:16.5]} 40... Rd8+ {[%clk 0:00:22.6]} 41. Rd4 {[%clk 0:00:17.5]}
41... Qxa2+ {[%clk 0:00:23.8]} 42. Kc1 {[%clk 0:00:17.1]} 42... Qa1+ {[%clk
0:00:24.3]} 43. Kc2 {[%clk 0:00:17.9]} 43... Qa2+ {[%clk 0:00:24.6]} 44. Kc1
{[%clk 0:00:18.7]} 44... Re8 {[%clk 0:00:24.9]} 45. Rxe4 {[%clk 0:00:17.3]}
45... Rxe4 {[%clk 0:00:24.7]} 46. Qxe4 {[%clk 0:00:17.9]} 46... Qa3+ {[%clk
0:00:25.5]} 47. Kd2 {[%clk 0:00:17.5]} 47... Qd6+ {[%clk 0:00:22.6]} 48. Ke3
{[%clk 0:00:17.3]} 48... Kf8 {[%clk 0:00:19.7]} 49. Kxf3 {[%clk 0:00:16.2]}
49... Qd1+ {[%clk 0:00:20.6]} 50. Kg2 {[%clk 0:00:15.9]} 50... Qd7 {[%clk
0:00:22.2]} 51. Qb4+ {[%clk 0:00:15.9]} 51... Kg8 {[%clk 0:00:22.4]} 52. Qh4
{[%clk 0:00:15.5]} 52... Qd5+ {[%clk 0:00:21.9]} 53. Kg1 {[%clk 0:00:14.4]}
53... Qd1+ {[%clk 0:00:22.7]} 54. Kh2 {[%clk 0:00:15.3]} 54... Qd6+ {[%clk
0:00:23.7]} 55. Qg3 {[%clk 0:00:16.4]} 55... Qd8 {[%clk 0:00:22.7]} 56. c4
{[%clk 0:00:14.4]} 56... Kf8 {[%clk 0:00:22.9]} 57. Qh4 {[%clk 0:00:14.1]} 57...
Qd6+ {[%clk 0:00:24]} 58. Kh3 {[%clk 0:00:13.6]} 58... Qe6+ {[%clk 0:00:24.6]}
59. Kg2 {[%clk 0:00:14.6]} 59... Ke8 {[%clk 0:00:26]} 60. Qd4 {[%clk 0:00:14]}
60... Qc6+ {[%clk 0:00:25.1]} 61. f3 {[%clk 0:00:13.9]} 61... Qe6 {[%clk
0:00:25.4]} 62. Qxa7 {[%clk 0:00:14.4]} 62... Qe2+ {[%clk 0:00:26.3]} 63. Qf2
{[%clk 0:00:15.7]} 63... Qd3 {[%clk 0:00:27.1]} 64. Qe1+ {[%clk 0:00:16.2]}
64... Kd7 {[%clk 0:00:25.8]} 65. Qe7+ {[%clk 0:00:16.9]} 65... Kc6 {[%clk
0:00:27.4]} 66. Qe8+ {[%clk 0:00:16.8]} 66... Kb6 {[%clk 0:00:27.7]} 67. Qb5+
{[%clk 0:00:15.5]} 67... Ka7 {[%clk 0:00:28.1]} 68. Qc5+ {[%clk 0:00:16.3]}
68... Ka8 {[%clk 0:00:28.4]} 69. Qf8+ {[%clk 0:00:15.4]} 69... Ka7 {[%clk
0:00:29.7]} 70. Qxf7 {[%clk 0:00:16.2]} 70... Qe2+ {[%clk 0:00:30.9]} 71. Kg3
{[%clk 0:00:17]} 71... Qe1+ {[%clk 0:00:27.8]} 72. Kf4 {[%clk 0:00:17.5]} 72...
Qd2+ {[%clk 0:00:28.3]} 73. Ke5 {[%clk 0:00:16.3]} 73... Qxg5+ {[%clk
0:00:29.1]} 74. Ke6 {[%clk 0:00:17.4]} 74... Qf5+ {[%clk 0:00:30.3]} 75. Ke7
{[%clk 0:00:18.1]} 75... Qe5+ {[%clk 0:00:30.9]} 76. Kf8 {[%clk 0:00:18.2]}
76... Qd6+ {[%clk 0:00:30.5]} 77. Qe7 {[%clk 0:00:18.7]} 77... Qb8+ {[%clk
0:00:29.1]} 78. Kg7 {[%clk 0:00:19.1]} 78... g5 {[%clk 0:00:30.3]} 79. f7 {[%clk
0:00:19.8]} 79... Qg3 {[%clk 0:00:28.2]} 80. f8=Q {[%clk 0:00:18.6]} 80... Qe1
{[%clk 0:00:26.8]} 81. Qxe1 {[%clk 0:00:18]} 81... Ka6 {[%clk 0:00:28.4]} 1-0